bitfinex-derivatives/quotes_BTCF0:USTF0_20250713
["timestamp","ask_amount","ask_price","bid_price","bid_amount"]
[1752424856785,1.16147502,118920.0,118910.0,0.2975336]
[1752424856984,1.16147502,118920.0,118910.0,0.2555041]
[1752424858789,1.16147502,118920.0,118910.0,0.2134746]
[1752424859193,1.16147502,118920.0,118910.0,0.0453668]
[1752424859383,1.16147502,118920.0,118910.0,0.2134861]
[1752424859682,1.37542396,118920.0,118910.0,0.0227768]
[1752424859884,1.95242396,118920.0,118910.0,0.005]
[1752424860183,1.73847502,118920.0,118910.0,0.005]
[1752424860984,2.12060796,118920.0,118900.0,0.0002]
[1752424861191,0.2720576,118890.0,118880.0,0.01181786]
[1752424861384,0.2720576,118890.0,118860.0,0.02361]
[1752424861385,0.2011058,118870.0,118860.0,0.02361]
[1752424861586,1.65452492,118870.0,118850.0,0.1681946]
[1752424861792,0.2721141,118850.0,118840.0,0.24485963]
[1752424861987,1.44056428,118850.0,118840.0,0.24485963]
[1752424862493,1.50722522,118850.0,118840.0,0.24485963]
[1752424862788,0.18731218,118850.0,118840.0,0.81960857]
[1752424862987,0.01674124,118850.0,118840.0,1.99538335]
[1752424863183,0.79256,118860.0,118850.0,0.1997441]
[1752424863392,0.81031185,118860.0,118850.0,0.90938696]
[1752424863591,0.06516185,118860.0,118850.0,0.90938696]
[1752424863790,0.64212185,118860.0,118850.0,0.90938696]
[1752424864289,0.06516185,118860.0,118850.0,0.90938696]
[1752424864491,0.76290185,118860.0,118850.0,0.90938696]
[1752424864893,0.81031185,118860.0,118850.0,0.90938696]
[1752424865091,0.81031185,118860.0,118850.0,0.91038696]
[1752424865490,0.23335185,118860.0,118850.0,0.91038696]
[1752424865690,0.81039185,118860.0,118850.0,0.91038696]
[1752424866491,0.23335185,118860.0,118850.0,0.91138696]
[1752424866897,0.81039185,118860.0,118850.0,0.91138696]
[1752424867196,0.64220185,118860.0,118850.0,0.91138696]
[1752424867895,0.64220185,118860.0,118850.0,0.6259841]
[1752424868101,0.86689185,118860.0,118850.0,0.91138696]
[1752424868397,0.28985185,118860.0,118850.0,0.55058696]
[1752424868590,0.86689185,118860.0,118850.0,0.55058696]
[1752424869197,0.86689185,118860.0,118850.0,0.2651841]
[1752424869399,0.28985185,118860.0,118850.0,0.2651841]
[1752424869599,0.86689185,118860.0,118850.0,0.2651841]
[1752424870099,1.22769185,118860.0,118850.0,0.2253541]
[1752424870598,0.67513185,118860.0,118850.0,0.91138696]
[1752424871093,0.01775185,118860.0,118850.0,1.07965896]
[1752424871294,0.59483185,118860.0,118850.0,0.7942561]
[1752424871496,0.59483185,118860.0,118850.0,1.07965896]
[1752424871697,0.64224185,118860.0,118850.0,1.07965896]
[1752424873503,0.84336185,118860.0,118850.0,1.07965896]
[1752424873698,0.86693185,118860.0,118850.0,0.7942561]
[1752424873899,0.86693185,118860.0,118850.0,0.71885896]
[1752424876603,0.86693185,118860.0,118850.0,0.55058696]
[1752424876803,0.86693185,118860.0,118850.0,0.71885896]
[1752424877599,0.86693185,118860.0,118850.0,0.55058696]
[1752424878506,0.86693185,118860.0,118850.0,0.2651841]
[1752424878706,0.86693185,118860.0,118850.0,0.55058696]
[1752424879109,1.22773185,118860.0,118850.0,0.55058696]
[1752424881302,0.86693185,118860.0,118850.0,0.55058696]
[1752424881506,1.22773185,118860.0,118850.0,0.55058696]
[1752424882113,0.86693185,118860.0,118850.0,0.55058696]
[1752424883017,0.86693185,118860.0,118850.0,0.91138696]
[1752424883820,0.69870185,118860.0,118850.0,0.91138696]
[1752424885422,0.86689185,118860.0,118850.0,0.91138696]
[1752424885717,0.69870185,118860.0,118850.0,0.91138696]
[1752424891524,0.69870185,118860.0,118850.0,0.55058696]
[1752424891722,0.86689185,118860.0,118850.0,0.55058696]
[1752424892222,0.84914,118860.0,118850.0,0.55058696]
[1752424892623,0.86729576,118860.0,118850.0,0.55058696]
[1752424892927,0.29025576,118860.0,118850.0,0.55058696]
[1752424893130,0.69906576,118860.0,118850.0,0.91138696]
[1752424893427,0.12206576,118860.0,118850.0,0.91138696]
[1752424893623,0.01815576,118860.0,118850.0,0.91138696]
[1752424894026,6e-08,118860.0,118850.0,1.07965896]
[1752424894526,0.11054614,118880.0,118870.0,0.1681758]
[1752424894822,0.18162187,118890.0,118880.0,0.1681617]
[1752424895017,0.11254614,118890.0,118880.0,0.91028456]
[1752424895524,0.11254614,118890.0,118880.0,0.91860062]
[1752424895928,0.11454614,118890.0,118880.0,0.91860062]
[1752424897024,0.11254614,118890.0,118880.0,0.91860062]
[1752424897327,0.08201,118890.0,118880.0,0.91860062]
[1752424898525,0.10491,118890.0,118880.0,0.91860062]
[1752424900029,0.10491,118890.0,118880.0,1.21290062]
[1752424902637,0.002,118890.0,118880.0,1.21290062]
[1752424902828,0.002,118890.0,118880.0,1.66653548]
[1752424904634,0.002,118890.0,118880.0,1.66753548]
[1752424905330,0.002,118890.0,118880.0,1.66853548]
[1752424905636,0.002,118890.0,118880.0,1.50030348]
[1752424905836,0.002,118890.0,118880.0,0.92949776]
[1752424906033,0.002,118890.0,118880.0,1.50030348]
[1752424906730,0.002,118890.0,118880.0,1.21490062]
[1752424907534,0.0200049,118890.0,118880.0,1.21490062]
[1752424908540,0.0200049,118890.0,118880.0,1.50030348]
[1752424917640,0.0673349,118890.0,118880.0,1.21490062]
[1752424925642,0.1241849,118890.0,118880.0,2.08273776]
[1752424925842,0.1241849,118890.0,118880.0,2.00734062]
[1752424926144,0.1241849,118890.0,118880.0,2.36814062]
[1752424927141,0.1241849,118890.0,118880.0,2.00734062]
[1752424927544,0.1241849,118890.0,118880.0,1.71304062]
[1752424927745,0.1241849,118890.0,118880.0,2.07384062]
[1752424929341,0.0673349,118890.0,118880.0,2.07384062]
[1752424930146,0.2923325,118890.0,118880.0,1.71304062]
[1752424930347,0.1241849,118890.0,118880.0,1.71304062]
[1752424930552,0.1241849,118890.0,118880.0,2.07384062]
[1752424930948,0.1241849,118890.0,118880.0,1.71304062]
[1752424931148,0.1241849,118890.0,118880.0,2.07384062]
[1752424933352,0.1241849,118890.0,118880.0,2.36814062]
[1752424933947,0.2923325,118890.0,118880.0,2.36814062]
[1752424934148,0.2923325,118890.0,118880.0,1.96751062]
[1752424934843,0.2923325,118890.0,118880.0,2.36814062]
[1752424935049,0.1241849,118890.0,118880.0,2.00734062]
[1752424936458,0.2923325,118890.0,118880.0,2.00734062]
[1752424936657,0.2923325,118890.0,118880.0,2.36814062]
[1752424937551,0.1241849,118890.0,118880.0,2.36814062]
[1752424939359,0.1241849,118890.0,118880.0,2.07384062]
[1752424939956,0.1241849,118890.0,118880.0,1.71304062]
[1752424940460,0.1241849,118890.0,118880.0,2.07384062]
[1752424944360,0.1241849,118890.0,118880.0,1.71304062]
[1752424944662,0.1241849,118890.0,118880.0,2.07384062]
[1752424945175,0.1241849,118890.0,118880.0,1.71304062]
[1752424946667,0.1002749,118890.0,118880.0,2.07384062]
[1752424947458,0.1002749,118890.0,118880.0,1.71304062]
[1752424947662,0.1002749,118890.0,118880.0,2.07384062]
[1752424948270,0.0200049,118890.0,118880.0,2.35924348]
[1752424949469,0.0200049,118890.0,118880.0,2.07384062]
[1752424950971,0.0200049,118890.0,118880.0,2.35924348]
[1752424951176,0.0200049,118890.0,118880.0,2.65354348]
[1752424952472,0.0200049,118890.0,118880.0,2.36814062]
[1752424953775,0.0200049,118890.0,118880.0,2.65354348]
[1752424955180,0.0200049,118890.0,118880.0,2.36814062]
[1752424960481,0.0200049,118890.0,118880.0,2.65354348]
[1752424961179,0.01993209,118890.0,118880.0,2.65354348]
[1752424965985,0.01993209,118890.0,118880.0,2.36814062]
[1752424966380,0.06703209,118890.0,118880.0,2.36814062]
[1752424966582,0.09938209,118890.0,118880.0,2.36814062]
[1752424966986,0.12298209,118890.0,118880.0,2.00734062]
[1752424967183,0.12298209,118890.0,118880.0,2.36814062]
[1752424969684,0.12298209,118890.0,118880.0,1.21490062]
[1752424969883,0.57653245,118890.0,118880.0,1.14493776]
[1752424970084,0.29112959,118890.0,118880.0,1.14493776]
[1752424970285,0.29112959,118890.0,118880.0,1.50573776]
[1752424970891,0.65192959,118890.0,118880.0,1.14493776]
[1752424971087,0.29112959,118890.0,118880.0,1.14493776]
[1752424974384,0.35145713,118890.0,118880.0,1.14493776]
[1752424974587,0.29112959,118890.0,118880.0,1.14493776]
[1752424974780,0.29112959,118890.0,118880.0,0.85063776]
[1752424975390,0.29112959,118890.0,118880.0,1.21143776]
[1752424975391,0.29112969,118890.0,118880.0,1.21143776]
[1752424975597,0.12298209,118890.0,118880.0,1.21143776]
[1752424975891,0.29112969,118890.0,118880.0,1.21143776]
[1752424976477,0.29112969,118890.0,118880.0,1.49684062]
[1752424976786,0.95299876,118890.0,118880.0,0.1930817]
[1752424976986,1.0133263,118890.0,118880.0,0.1930817]
[1752424977189,1.5895263,118890.0,118880.0,0.1930817]
[1752424977387,1.2287263,118890.0,118880.0,0.1930817]
[1752424978282,1.30412344,118890.0,118880.0,0.1930817]
[1752424978484,0.94332344,118890.0,118880.0,0.1930817]
[1752424978786,1.30412344,118890.0,118880.0,0.1930817]
[1752424980389,0.94332344,118890.0,118880.0,0.1930817]
[1752424980590,1.5895263,118890.0,118880.0,0.1930817]
[1752424981291,1.52919876,118890.0,118880.0,0.1930817]
[1752424981490,1.16839876,118890.0,118880.0,0.1930817]
[1752424981688,0.8829959,118890.0,118880.0,0.1930817]
[1752424981890,1.2437959,118890.0,118880.0,0.1930817]
[1752424982083,0.72811612,118890.0,118880.0,0.2249417]
[1752424982283,0.72811612,118890.0,118880.0,0.55017456]
[1752424982484,1.2437959,118890.0,118880.0,0.55017456]
[1752424982888,0.6675959,118890.0,118880.0,0.55017456]
[1752424983186,0.8829958,118890.0,118880.0,0.55017456]
[1752424983584,0.8829958,118890.0,118880.0,0.91097456]
[1752424984490,0.8829958,118890.0,118880.0,0.55017456]
[1752424984992,0.3067958,118890.0,118880.0,1.70257456]
[1752424987886,0.3067958,118890.0,118880.0,2.06337456]
[1752424988395,0.3067958,118890.0,118880.0,1.70257456]
[1752424988992,0.1150483,118890.0,118880.0,1.70257456]
[1752424989193,0.0355983,118890.0,118880.0,2.06337456]
[1752424989893,0.0355983,118890.0,118880.0,2.34877742]
[1752424990298,0.0355983,118890.0,118880.0,2.06337456]
[1752424994703,0.0355983,118890.0,118880.0,2.34877742]
[1752425007614,0.0355983,118890.0,118880.0,2.70957742]
[1752425010315,0.0355983,118890.0,118880.0,3.00387742]
[1752425014717,0.0355983,118890.0,118880.0,2.4330717]
[1752425015113,0.0355983,118890.0,118880.0,3.00387742]
[1752425015523,0.01993209,118890.0,118880.0,3.00387742]
[1752425017022,0.01993209,118890.0,118880.0,3.07488378]
[1752425033936,0.10585,118910.0,118900.0,0.2244034]
[1752425034235,0.10585,118910.0,118900.0,2.18453812]
[1752425035235,0.10785,118910.0,118900.0,2.18453812]
[1752425035434,0.10885,118910.0,118900.0,2.18453812]
[1752425036028,0.08438,118910.0,118900.0,2.18453812]
[1752425036234,0.05137,118910.0,118900.0,2.39847548]
[1752425037339,0.05137,118910.0,118900.0,2.18453812]
[1752425038138,0.04837,118910.0,118900.0,2.18453812]
[1752425038437,0.05137,118910.0,118900.0,2.18453812]
[1752425039340,0.04937,118910.0,118900.0,2.18453812]
[1752425039536,0.04837,118910.0,118900.0,2.18453812]
[1752425039937,0.04837,118910.0,118900.0,2.47883812]
[1752425043038,0.04837,118910.0,118900.0,2.0509634]
[1752425043345,0.106,118910.0,118900.0,2.47883812]
[1752425044244,0.31993736,118910.0,118900.0,2.24480076]
[1752425045138,0.31993736,118910.0,118900.0,2.26470076]
[1752425045340,0.48805656,118910.0,118900.0,2.47863812]
[1752425045846,0.50587895,118910.0,118900.0,2.18433812]
[1752425046142,0.33775975,118910.0,118900.0,2.18433812]
[1752425046341,0.12382239,118910.0,118900.0,2.16443812]
[1752425046838,0.12382239,118910.0,118900.0,1.80363812]
[1752425047039,0.12382239,118910.0,118900.0,2.18433812]
[1752425047234,0.12382239,118910.0,118900.0,1.82353812]
[1752425047438,0.12382239,118910.0,118900.0,2.18433812]
[1752425048248,0.29194159,118910.0,118900.0,2.16443812]
[1752425048444,0.12382239,118910.0,118900.0,2.16443812]
[1752425048645,0.12382239,118910.0,118900.0,1.80363812]
[1752425048846,0.12382239,118910.0,118900.0,2.16443812]
[1752425049646,0.29194159,118910.0,118900.0,2.16443812]
[1752425050344,0.12382239,118910.0,118900.0,2.16443812]
[1752425051547,0.12382239,118910.0,118900.0,1.80363812]
[1752425051748,0.12382239,118910.0,118900.0,2.16443812]
[1752425052050,0.12382239,118910.0,118900.0,2.18433812]
[1752425052253,0.12508551,118910.0,118900.0,2.18433812]
[1752425053551,0.12508551,118910.0,118900.0,1.82353812]
[1752425053753,0.12508551,118910.0,118900.0,2.18433812]
[1752425055340,0.12508551,118910.0,118900.0,1.82353812]
[1752425056052,0.12508551,118910.0,118900.0,2.18433812]
[1752425060053,0.12508551,118910.0,118900.0,1.82353812]
[1752425060251,0.12508551,118910.0,118900.0,2.18433812]
[1752425060657,0.12508551,118910.0,118900.0,1.82353812]
[1752425061057,0.12508551,118910.0,118900.0,2.18433812]
[1752425061645,0.12508551,118910.0,118900.0,1.82353812]
[1752425061851,0.12508551,118910.0,118900.0,2.18433812]
[1752425062459,0.10046551,118910.0,118900.0,2.18433812]
[1752425063159,0.12508551,118910.0,118900.0,2.18433812]
[1752425063554,0.10046551,118910.0,118900.0,2.18433812]
[1752425066060,0.16098575,118910.0,118900.0,2.18433812]
[1752425069275,0.10046551,118910.0,118900.0,2.18433812]
[1752425082387,0.06745551,118910.0,118900.0,2.18433812]
[1752425084991,0.01908551,118910.0,118900.0,2.39827548]
[1752425086484,0.01908551,118910.0,118900.0,2.39927548]
[1752425086789,0.01908551,118910.0,118900.0,2.40027548]
[1752425087291,0.01908551,118910.0,118900.0,2.69457548]
[1752425088786,0.01908551,118910.0,118900.0,2.48063812]
[1752425089295,0.01908551,118910.0,118900.0,2.69457548]
[1752425091695,0.01908551,118910.0,118900.0,2.48063812]
[1752425096397,0.01908551,118910.0,118900.0,2.69457548]
[1752425101705,0.01908551,118910.0,118900.0,2.48063812]
[1752425102804,0.06535551,118910.0,118900.0,2.48063812]
[1752425103110,0.12117551,118910.0,118900.0,2.48063812]
[1752425104311,0.28929491,118910.0,118900.0,2.48063812]
[1752425104705,0.50323227,118910.0,118900.0,2.48063812]
[1752425105004,0.28929491,118910.0,118900.0,2.18633812]
[1752425105307,0.28929491,118910.0,118900.0,2.16643812]
[1752425107710,0.28929491,118910.0,118900.0,2.18633812]
[1752425107910,0.12117551,118910.0,118900.0,2.18633812]
[1752425109221,0.28929491,118910.0,118900.0,2.18633812]
[1752425109516,0.12117551,118910.0,118900.0,2.18633812]
[1752425110413,0.28929491,118910.0,118900.0,1.97240076]
[1752425110716,0.28929491,118910.0,118900.0,2.18633812]
[1752425111110,0.12117551,118910.0,118900.0,2.18633812]
[1752425111614,0.28929491,118910.0,118900.0,2.18633812]
[1752425112017,0.12117551,118910.0,118900.0,2.18633812]
[1752425112823,0.28929491,118910.0,118900.0,1.7584634]
[1752425113010,0.28929491,118910.0,118900.0,2.18633812]
[1752425113209,0.34981515,118910.0,118900.0,2.18633812]
[1752425116321,0.56375251,118910.0,118900.0,0.44034086]
[1752425116625,0.86403227,118910.0,118900.0,0.44034086]
[1752425117327,0.92455251,118910.0,118900.0,0.44034086]
[1752425120424,0.56375251,118910.0,118900.0,0.44034086]
[1752425120626,0.92455251,118910.0,118900.0,0.44034086]
[1752425121029,0.71061515,118910.0,118900.0,0.44034086]
[1752425121226,0.34981515,118910.0,118900.0,0.65427822]
[1752425121928,0.34981515,118910.0,118900.0,1.01507822]
[1752425122121,0.34981515,118910.0,118900.0,0.65427822]
[1752425123129,0.28929491,118910.0,118900.0,0.65427822]
[1752425123325,0.86403227,118910.0,118900.0,0.002]
[1752425123524,1.07796963,118910.0,118900.0,0.002]
[1752425123720,1.55668987,118910.0,118900.0,0.002]
[1752425123926,0.2711135,118900.0,118890.0,0.0002]
[1752425124128,0.2711135,118900.0,118880.0,0.25382728]
[1752425124129,0.2711277,118890.0,118880.0,0.25382728]
[1752425124432,0.86495057,118890.0,118880.0,0.25362728]
[1752425124920,0.57561789,118890.0,118880.0,0.25362728]
[1752425125730,0.65101321,118890.0,118880.0,0.25362728]
[1752425125927,0.29021321,118890.0,118880.0,0.25362728]
[1752425126738,0.65101321,118890.0,118880.0,0.25662728]
[1752425127038,0.65101321,118890.0,118880.0,0.25962728]
[1752425127338,0.65756304,118890.0,118880.0,0.25962728]
[1752425127835,0.29676304,118890.0,118880.0,0.25962728]
[1752425128034,0.94296772,118890.0,118880.0,0.23578728]
[1752425128437,0.94296772,118890.0,118880.0,0.02559218]
[1752425129234,0.94296772,118890.0,118880.0,0.19375398]
[1752425131335,0.94296772,118890.0,118880.0,0.02559218]
[1752425131639,0.94296772,118890.0,118880.0,0.19375398]
[1752425132541,0.94296772,118890.0,118880.0,0.21759398]
[1752425133340,0.94296772,118890.0,118880.0,0.1996841]
[1752425134442,0.94296772,118890.0,118880.0,0.1758441]
[1752425134743,0.94291379,118890.0,118880.0,0.1758441]
[1752425135932,0.94291379,118890.0,118880.0,0.1996841]
[1752425137745,0.93636396,118890.0,118880.0,0.1996841]
[1752425138045,0.65095928,118890.0,118880.0,0.1996841]
[1752425138642,0.65095928,118890.0,118880.0,0.53682878]
[1752425138843,1.22611928,118890.0,118880.0,0.53682878]
[1752425139247,0.65095928,118890.0,118880.0,0.53682878]
[1752425139740,0.64272158,118890.0,118880.0,0.89762878]
[1752425140445,0.06760158,118890.0,118880.0,0.89762878]
[1752425141346,0.01903158,118890.0,118880.0,1.54383346]
[1752425141538,0.01574028,118900.0,118890.0,0.1695276]
[1752425141738,0.01574028,118900.0,118890.0,1.99148228]
[1752425142847,0.2166896,118910.0,118900.0,0.1681334]
[1752425143039,0.2166896,118910.0,118900.0,0.47962808]
[1752425144246,0.04857,118910.0,118900.0,0.48062808]
[1752425145541,0.2166893,118910.0,118900.0,0.48062808]
[1752425145742,0.2166893,118910.0,118900.0,0.48162808]
[1752425145943,0.2166893,118910.0,118900.0,0.48815961]
[1752425146142,0.04857,118910.0,118900.0,0.48815961]
[1752425147749,0.2472793,118910.0,118900.0,0.20275493]
[1752425148048,0.2472793,118910.0,118900.0,0.48815961]
[1752425148253,0.2710993,118910.0,118900.0,0.48815961]
[1752425150952,0.2710993,118910.0,118900.0,0.48075808]
[1752425151353,0.2710993,118910.0,118900.0,0.1953534]
[1752425152456,0.2710993,118910.0,118900.0,0.20206459]
[1752425152753,0.2710993,118910.0,118900.0,0.48746927]
[1752425153353,0.04857,118910.0,118900.0,0.84913927]
[1752425153554,0.01741517,118910.0,118900.0,1.14343927]
[1752425154051,0.01654517,118910.0,118900.0,1.14343927]
[1752425154255,0.06453599,118920.0,118910.0,0.1908393]
[1752425154256,0.12505623,118920.0,118910.0,0.1908393]
[1752425154455,0.06453599,118920.0,118910.0,1.62824398]
[1752425155656,0.06453599,118920.0,118910.0,1.98904398]
[1752425157357,0.06553599,118920.0,118910.0,1.99004398]
[1752425157951,0.06453599,118920.0,118910.0,1.99104398]
[1752425166060,0.08191092,118920.0,118910.0,1.99104398]
[1752425171163,0.03334092,118920.0,118910.0,2.28534398]
[1752425176170,0.03334092,118920.0,118910.0,2.57074866]
[1752425176577,0.03334092,118920.0,118910.0,2.28534398]
[1752425178379,0.004,118930.0,118920.0,0.1681052]
[1752425178580,0.004,118930.0,118920.0,1.15794125]
[1752425178879,0.6002928,118950.0,118940.0,0.168077]
[1752425179080,0.6322928,118950.0,118940.0,0.47620168]
[1752425179379,0.2714928,118950.0,118940.0,0.83700168]
[1752425179977,0.2714928,118950.0,118940.0,0.47620168]
[1752425180179,0.2714928,118950.0,118940.0,0.48135849]
[1752425180679,0.2764928,118950.0,118940.0,0.48135849]
[1752425181077,0.2784928,118950.0,118940.0,0.84215849]
[1752425181278,0.2784928,118950.0,118940.0,0.48135849]
[1752425181784,0.2784928,118950.0,118940.0,0.47420168]
[1752425182781,0.2784928,118950.0,118940.0,0.549597]
[1752425182976,0.2784928,118950.0,118940.0,0.19571576]
[1752425183181,0.33901304,118950.0,118940.0,0.54152541]
[1752425184178,0.33901304,118950.0,118940.0,0.23340073]
[1752425185176,1.49993748,118950.0,118940.0,0.166077]
[1752425185377,0.266737,118940.0,118930.0,0.5886405]
[1752425185682,0.56818793,118940.0,118930.0,0.5884405]
[1752425186084,0.98950817,118940.0,118930.0,0.5043986]
[1752425186781,1.15766817,118940.0,118930.0,0.2943]
[1752425186982,1.40766817,118940.0,118930.0,0.2943]
[1752425187186,1.15966817,118940.0,118930.0,0.2943]
[1752425187787,1.17485561,118940.0,118930.0,0.2943]
[1752425190088,1.17585561,118940.0,118930.0,0.2943]
[1752425190382,1.19314781,118940.0,118930.0,0.2943]
[1752425190788,0.1680911,118930.0,118920.0,0.24751522]
[1752425190989,1.52094148,118930.0,118920.0,0.24731522]
[1752425191190,1.56607148,118930.0,118920.0,0.24731522]
[1752425191489,1.57326584,118930.0,118920.0,0.24731522]
[1752425192889,1.57426584,118930.0,118920.0,0.24731522]
[1752425193284,1.51380234,118930.0,118920.0,0.24731522]
[1752425193789,1.50660798,118930.0,118920.0,0.24731522]
[1752425194890,1.51375933,118930.0,118920.0,0.24731522]
[1752425195690,1.57422283,118930.0,118920.0,0.24731522]
[1752425196183,1.51375933,118930.0,118920.0,0.24731522]
[1752425199086,1.51375933,118930.0,118920.0,0.20528912]
[1752425199286,1.51375933,118930.0,118920.0,0.03718842]
[1752425201294,1.22835465,118930.0,118920.0,0.03718842]
[1752425201595,1.51375933,118930.0,118920.0,0.03718842]
[1752425203195,1.57422283,118930.0,118920.0,0.03718842]
[1752425203691,1.57422283,118930.0,118920.0,0.01938275]
[1752425203892,1.57422283,118930.0,118920.0,0.18748785]
[1752425204797,1.28881815,118930.0,118920.0,0.18748785]
[1752425205093,1.57422283,118930.0,118920.0,0.18748785]
[1752425205395,1.28881815,118930.0,118920.0,0.18748785]
[1752425206894,0.92801815,118930.0,118920.0,0.18748785]
[1752425207095,1.57422283,118930.0,118920.0,0.18748785]
[1752425208192,1.21342283,118930.0,118920.0,0.18748785]
[1752425208392,1.57422283,118930.0,118920.0,0.18748785]
[1752425208793,1.21342283,118930.0,118920.0,0.18748785]
[1752425208997,1.57422283,118930.0,118920.0,0.18748785]
[1752425211000,1.57417437,118930.0,118920.0,0.18748785]
[1752425211199,1.51375933,118930.0,118920.0,0.18748785]
[1752425211900,1.5741806,118930.0,118920.0,0.18748785]
[1752425212101,1.51375933,118930.0,118920.0,0.18748785]
[1752425212294,1.51375933,118930.0,118920.0,0.01938275]
[1752425212494,1.51375933,118930.0,118920.0,0.18748785]
[1752425212695,1.51375933,118930.0,118920.0,0.01938275]
[1752425213100,1.51375933,118930.0,118910.0,0.0002]
[1752425213101,0.2681051,118920.0,118910.0,0.0002]
[1752425213294,0.2678893,118910.0,118900.0,0.2523904]
[1752425213494,1.50674618,118910.0,118900.0,0.2521904]
[1752425214199,1.50674618,118910.0,118900.0,0.2854104]
[1752425214402,1.50674618,118910.0,118900.0,0.2874104]
[1752425215000,1.50674618,118910.0,118900.0,0.2894104]
[1752425215194,1.2213415,118910.0,118900.0,0.2894104]
[1752425216196,0.8605415,118910.0,118900.0,0.2894104]
[1752425216796,1.14594618,118910.0,118900.0,0.2894104]
[1752425217503,0.6925022,118910.0,118900.0,0.64445508]
[1752425217706,0.6925022,118910.0,118900.0,1.01244435]
[1752425219006,0.8606213,118910.0,118900.0,1.01244435]
[1752425220608,0.8606213,118910.0,118900.0,0.64445508]
[1752425220910,0.8606213,118910.0,118900.0,0.3590504]
[1752425222108,1.14602598,118910.0,118900.0,0.2894104]
[1752425222500,1.2214213,118910.0,118900.0,0.2473772]
[1752425222701,0.8606213,118910.0,118900.0,0.2473772]
[1752425222901,0.2851813,118910.0,118900.0,0.2473772]
[1752425223098,1.2219013,118910.0,118900.0,0.2473772]
[1752425223299,0.8611013,118910.0,118900.0,0.2473772]
[1752425223699,1.2219013,118910.0,118900.0,0.2473772]
[1752425224597,0.8611013,118910.0,118900.0,0.2473772]
[1752425225005,1.2219013,118910.0,118900.0,0.2473772]
[1752425226206,0.8611013,118910.0,118900.0,0.2473772]
[1752425226903,0.8611013,118910.0,118900.0,0.96322188]
[1752425227110,0.6929822,118910.0,118900.0,0.96322188]
[1752425227508,0.6929822,118910.0,118900.0,0.60242188]
[1752425227708,0.8611013,118910.0,118900.0,0.60242188]
[1752425229009,0.8611013,118910.0,118900.0,0.3170172]
[1752425230403,0.8611013,118910.0,118900.0,0.60242188]
[1752425231113,0.8611013,118910.0,118900.0,0.96322188]
[1752425231313,0.8611013,118910.0,118900.0,0.60242188]
[1752425232115,0.8611013,118910.0,118900.0,0.3170172]
[1752425232316,0.8611013,118910.0,118900.0,0.60242188]
[1752425232709,0.8611013,118910.0,118900.0,0.3170172]
[1752425233511,0.8438091,118910.0,118900.0,0.3170172]
[1752425233711,0.86111052,118910.0,118900.0,0.3170172]
[1752425234920,0.86111052,118910.0,118900.0,0.2700272]
[1752425235520,1.1465152,118910.0,118900.0,0.2141572]
[1752425235818,1.5073152,118910.0,118900.0,0.004]
[1752425236518,0.2724032,118900.0,118890.0,0.0002]
[1752425236823,0.2724174,118890.0,118880.0,0.27363867]
[1752425237022,1.5118035,118890.0,118880.0,0.27343867]
[1752425238223,1.5118035,118890.0,118880.0,0.27843867]
[1752425238424,1.22639882,118890.0,118880.0,0.27843867]
[1752425238624,1.5118035,118890.0,118880.0,0.27843867]
[1752425239424,1.5118035,118890.0,118880.0,0.28143867]
[1752425242424,1.22639882,118890.0,118880.0,0.28143867]
[1752425243220,0.86559882,118890.0,118880.0,0.31406867]
[1752425243722,0.12157142,118890.0,118880.0,1.03232335]
[1752425243928,0.69749142,118890.0,118880.0,1.03232335]
[1752425244931,0.86563882,118890.0,118880.0,1.03232335]
[1752425245327,0.86563882,118890.0,118880.0,0.67152335]
[1752425245729,0.28971882,118890.0,118880.0,1.03232335]
[1752425245928,0.86559882,118890.0,118880.0,0.67152335]
[1752425246430,0.86559882,118890.0,118880.0,1.03232335]
[1752425247031,0.86559882,118890.0,118880.0,0.67152335]
[1752425247232,0.86559882,118890.0,118880.0,1.03232335]
[1752425249341,1.22639882,118890.0,118880.0,0.38611867]
[1752425249634,1.22639882,118890.0,118880.0,0.67152335]
[1752425250433,1.22639882,118890.0,118880.0,0.33880867]
[1752425251531,1.22639882,118890.0,118880.0,0.31406867]
[1752425251834,0.86559882,118890.0,118880.0,0.31406867]
[1752425253539,0.69745142,118890.0,118880.0,0.31406867]
[1752425253839,1.05825142,118890.0,118880.0,0.31406867]
[1752425254040,0.69745142,118890.0,118880.0,0.59947335]
[1752425254740,0.69745142,118890.0,118880.0,0.62421335]
[1752425255240,0.69745142,118890.0,118880.0,1.03232335]
[1752425255443,0.69745142,118890.0,118880.0,0.67152335]
[1752425256041,0.69745142,118890.0,118880.0,0.38611867]
[1752425256237,0.69745142,118890.0,118880.0,0.67152335]
[1752425257137,0.12157142,118890.0,118880.0,1.03232335]
[1752425257343,0.69701142,118890.0,118880.0,1.03232335]
[1752425257544,0.69705142,118890.0,118880.0,1.03232335]
[1752425258644,0.12157142,118890.0,118880.0,1.03232335]
[1752425258831,0.69713142,118890.0,118880.0,1.03232335]
[1752425261843,0.69713142,118890.0,118880.0,0.74691867]
[1752425262043,0.69713142,118890.0,118880.0,0.69960867]
[1752425262344,0.69713142,118890.0,118880.0,0.65727564]
[1752425262642,0.69769142,118890.0,118880.0,0.65727564]
[1752425262944,0.86583882,118890.0,118880.0,0.65727564]
[1752425264332,0.69769142,118890.0,118880.0,0.65727564]
[1752425264539,0.69769142,118890.0,118880.0,0.68201564]
[1752425265342,0.86583882,118890.0,118880.0,0.68201564]
[1752425265541,0.69769142,118890.0,118880.0,0.68201564]
[1752425267449,0.86583882,118890.0,118880.0,0.68201564]
[1752425267650,0.69769142,118890.0,118880.0,0.68201564]
[1752425268444,0.69769142,118890.0,118880.0,0.72932564]
[1752425268644,0.69769142,118890.0,118880.0,1.01473032]
[1752425269951,0.86583882,118890.0,118880.0,0.72932564]
[1752425270152,0.69769142,118890.0,118880.0,1.01473032]
[1752425270353,0.86583882,118890.0,118880.0,1.01473032]
[1752425270952,0.86583882,118890.0,118880.0,0.96742032]
[1752425271140,0.86583882,118890.0,118880.0,0.94268032]
[1752425271650,0.69769142,118890.0,118880.0,0.96742032]
[1752425271857,0.69769142,118890.0,118880.0,0.72932564]
[1752425272153,0.86583882,118890.0,118880.0,0.72932564]
[1752425272751,0.69769142,118890.0,118880.0,0.72932564]
[1752425273854,0.69769142,118890.0,118880.0,0.36852564]
[1752425274246,0.86583882,118890.0,118880.0,0.36852564]
[1752425274658,0.69769142,118890.0,118880.0,0.36852564]
[1752425275250,0.69769142,118890.0,118880.0,0.65393032]
[1752425277058,0.86583882,118890.0,118880.0,0.65393032]
[1752425279057,0.69769142,118890.0,118880.0,0.65393032]
[1752425280766,0.69769142,118890.0,118880.0,1.01473032]
[1752425280959,0.69769142,118890.0,118880.0,0.65393032]
[1752425281851,0.69769142,118890.0,118880.0,1.01473032]
[1752425288364,0.69769142,118890.0,118880.0,0.72932564]
[1752425288665,0.69769142,118890.0,118880.0,1.01473032]
[1752425289857,0.86583872,118890.0,118880.0,1.01473032]
[1752425290760,0.69769142,118890.0,118880.0,1.01473032]
[1752425291167,0.69769142,118890.0,118880.0,0.72932564]
[1752425291371,0.69769142,118890.0,118880.0,1.01473032]